bitfinex/quotes_SOLUSD_20250919
["timestamp","ask_amount","ask_price","bid_price","bid_amount"]
[1758293299672,0.67,240.81,240.78,5.55540851]
[1758293299890,0.67,240.81,240.77,5.55540851]
[1758293300276,15.26340007,240.82,240.77,9.70874019]
[1758293300457,0.67,240.81,240.74,0.67]
[1758293300654,0.67,240.81,240.72,38.9]
[1758293300655,5.55540851,240.8,240.72,0.28432314]
[1758293300865,0.67,240.79,240.74,5.55540851]
[1758293301052,5.55540851,240.8,240.71,4.8242156]
[1758293301053,0.67,240.78,240.73,5.55540851]
[1758293301456,6.22540851,240.81,240.71,4.8242156]
[1758293301668,6.22540851,240.81,240.75,5.55540851]
[1758293301669,0.67,240.81,240.75,5.55540851]
[1758293301870,0.67,240.81,240.77,5.55540851]
[1758293302077,0.67,240.81,240.76,5.55540851]
[1758293302279,0.67,240.8,240.72,0.95432314]
[1758293302576,6.22540851,240.79,240.73,5.55540851]
[1758293302979,0.67,240.79,240.73,5.55540851]
[1758293303168,6.22540851,240.79,240.73,5.55540851]
[1758293303480,15.26340007,240.82,240.77,5.55540851]
[1758293303658,0.67,240.81,240.76,5.55540851]
[1758293303861,0.67,240.8,240.76,5.55540851]
[1758293304061,0.67,240.79,240.75,5.55540851]
[1758293304262,0.67,240.79,240.74,4.15385893]
[1758293304571,0.67,240.79,240.75,5.55540851]
[1758293304770,0.67,240.78,240.75,5.55540851]
[1758293304971,0.67,240.77,240.74,5.55540851]
[1758293305173,0.67,240.76,240.72,5.55540851]
[1758293305483,0.66,240.75,240.69,0.28432314]
[1758293305788,0.66,240.77,240.71,5.55540851]
[1758293305988,6.21540851,240.76,240.69,5.55540851]
[1758293306164,26.0,240.79,240.73,5.55540851]
[1758293306362,6.21540851,240.78,240.72,5.55540851]
[1758293306559,0.66,240.78,240.72,5.55540851]
[1758293306767,6.21540851,240.78,240.71,5.55540851]
[1758293306965,0.66,240.77,240.7,5.55540851]
[1758293307170,0.66,240.77,240.71,5.55540851]
[1758293307397,15.26340007,240.82,240.72,5.55540851]
[1758293307584,0.66,240.81,240.75,5.55540851]
[1758293308484,6.21540851,240.81,240.74,5.55540851]
[1758293308685,0.66,240.81,240.75,5.55540851]
[1758293308983,0.66,240.81,240.73,0.72]
[1758293309173,6.21540851,240.81,240.75,5.55540851]
[1758293309368,0.66,240.81,240.75,5.55540851]
[1758293309577,0.66,240.8,240.74,5.55540851]
[1758293309774,0.66,240.8,240.7,0.72]
[1758293309983,26.0,240.87,240.75,5.55540851]
[1758293310189,0.66,240.82,240.75,5.55540851]
[1758293310371,5.55540851,240.81,240.75,5.55540851]
[1758293310573,0.66,240.82,240.74,5.55540851]
[1758293310773,5.55540851,240.81,240.74,5.55540851]
[1758293310991,0.66,240.82,240.74,5.55540851]
[1758293311165,5.55540851,240.81,240.74,5.55540851]
[1758293311368,1.03850739,240.8,240.74,5.55540851]
[1758293311575,5.55540851,240.81,240.74,5.55540851]
[1758293311802,1.03850739,240.8,240.74,5.55540851]
[1758293311969,1.03850739,240.8,240.73,0.72]
[1758293312286,7.2639159,240.8,240.74,5.55540851]
[1758293312497,0.67,240.8,240.74,5.55540851]
[1758293312683,1.70852112,240.8,240.74,5.55540851]
[1758293312860,1.70852112,240.8,240.72,0.68]
[1758293313062,26.72,240.83,240.74,5.55540851]
[1758293313268,1.75852134,240.82,240.72,0.68]
[1758293313486,1.75852134,240.82,240.73,5.55540851]
[1758293313690,5.55540851,240.78,240.69,4.83471546]
[1758293313999,0.72,240.78,240.73,5.55540851]
[1758293314195,0.72,240.78,240.72,5.55540851]
[1758293314499,5.55540851,240.76,240.67,0.28432314]
[1758293314797,5.55540851,240.78,240.71,5.55540851]
[1758293315003,6.27540851,240.78,240.71,5.55540851]
[1758293315498,5.55540851,240.77,240.68,0.68]
[1758293315680,5.55540851,240.77,240.7,5.55540851]
[1758293315998,0.72,240.78,240.72,5.55540851]
[1758293316197,5.55540851,240.77,240.7,5.55540851]
[1758293316401,6.27540851,240.77,240.7,5.55540851]
[1758293316581,0.72,240.77,240.7,5.55540851]
[1758293316775,6.27540851,240.77,240.7,5.55540851]
[1758293317681,6.27540851,240.77,240.71,5.55540851]
[1758293317996,0.72,240.77,240.69,4.97683164]
[1758293318203,6.27540851,240.77,240.71,5.55540851]
[1758293318578,0.72,240.77,240.71,5.55540851]
[1758293318889,0.72,240.77,240.69,4.97683164]
[1758293319082,0.72,240.77,240.71,5.55540851]
[1758293319383,5.55540851,240.82,240.74,5.55540851]
[1758293319585,1.75854433,240.81,240.74,5.55540851]
[1758293319898,5.55540851,240.78,240.7,0.82216157]
[1758293320089,6.27540851,240.78,240.71,5.55540851]
[1758293320588,5.55540851,240.74,240.68,0.68]
[1758293320764,5.55540851,240.74,240.65,0.14216157]
[1758293320765,6.27540851,240.74,240.65,18.57316745]
[1758293320967,6.27540851,240.74,240.62,38.6]
[1758293320968,6.27540851,240.74,240.67,5.55540851]
[1758293321779,6.27540851,240.74,240.66,0.68]
[1758293322089,0.72,240.74,240.67,5.55540851]
[1758293322289,6.27540851,240.74,240.67,5.55540851]
[1758293322674,0.72,240.73,240.58,2.16803142]
[1758293323000,5.55540851,240.7,240.62,0.68]
[1758293323173,6.27540851,240.69,240.59,0.68]
[1758293323494,6.27540851,240.69,240.62,5.55540851]
[1758293323495,5.55540851,240.68,240.62,5.55540851]
[1758293323688,6.27540851,240.68,240.59,0.68]
[1758293324071,6.27540851,240.68,240.61,5.65540851]
[1758293324274,0.72,240.68,240.61,5.65540851]
[1758293324590,0.72,240.67,240.61,0.1]
[1758293324791,0.72,240.67,240.61,5.65540851]
[1758293325097,26.0,240.74,240.61,0.1]
[1758293325098,6.27540851,240.66,240.61,0.1]
[1758293325298,0.72,240.66,240.61,0.1]
[1758293325505,0.72,240.65,240.61,0.1]
[1758293325872,26.0,240.74,240.61,0.1]
[1758293325873,0.72,240.64,240.61,0.1]
[1758293326499,26.0,240.74,240.61,0.1]
[1758293326500,0.72,240.63,240.61,0.1]
[1758293327199,0.72,240.62,240.61,0.1]
[1758293327894,0.72,240.64,240.61,0.1]
[1758293328097,0.72,240.63,240.61,0.1]
[1758293328693,6.27540851,240.66,240.61,0.1]
[1758293329080,0.72,240.65,240.61,0.1]
[1758293329280,0.72,240.67,240.61,0.1]
[1758293329490,6.27540851,240.67,240.61,0.1]
[1758293329883,6.27540851,240.67,240.61,4.2560815]
[1758293330083,0.72,240.67,240.61,9.81149001]
[1758293330398,0.72,240.67,240.61,0.1]
[1758293330989,6.27540851,240.67,240.61,0.1]
[1758293331599,0.72,240.67,240.61,0.1]
[1758293331800,6.27540851,240.67,240.61,0.1]
[1758293332177,0.72,240.67,240.61,5.65540851]
[1758293332573,0.68,240.69,240.61,5.65540851]
[1758293332803,6.23540851,240.68,240.61,0.1]
[1758293333011,5.55540851,240.65,240.61,0.1]
[1758293333184,0.68,240.68,240.61,0.1]
[1758293333504,5.55540851,240.62,240.61,0.1]
[1758293333715,6.23540851,240.62,240.61,0.1]
[1758293333918,0.68,240.62,240.61,0.1]
[1758293334418,6.23540851,240.62,240.61,0.1]
[1758293334617,0.68,240.62,240.61,0.1]
[1758293335702,6.23540851,240.62,240.61,0.1]
[1758293336018,4.33597914,240.62,240.61,0.1]
[1758293336198,0.68,240.62,240.61,0.1]
[1758293336520,30.33597914,240.62,240.61,0.1]
[1758293336695,43.93157315,240.62,240.61,0.1]
[1758293337200,40.27559401,240.62,240.61,0.1]
[1758293337715,43.93157315,240.62,240.61,0.1]
[1758293337916,82.11157315,240.62,240.61,0.1]
[1758293338106,43.93157315,240.62,240.61,0.1]
[1758293338414,13.59559401,240.61,240.51,0.1]
[1758293338715,3.65597914,240.57,240.51,0.1]
[1758293339093,26.0,240.59,240.51,4.44597914]
[1758293339094,26.71,240.59,240.51,4.44597914]
[1758293339299,3.65597914,240.58,240.51,0.1]
[1758293339594,0.71,240.59,240.51,3.75597914]
[1758293339819,0.71,240.59,240.51,0.79]
[1758293339996,3.65597914,240.58,240.51,0.79]
[1758293340319,3.65597914,240.57,240.51,4.94780538]
[1758293340516,4.36597914,240.57,240.51,0.1]
[1758293340721,3.65597914,240.56,240.51,0.1]
[1758293341014,3.65597914,240.54,240.51,0.1]
[1758293341188,0.71,240.53,240.51,0.1]
[1758293341794,1.4461195,240.54,240.51,0.1]
[1758293342015,0.71,240.53,240.51,0.1]
[1758293342216,2.1661195,240.53,240.51,0.1]
[1758293342427,0.72,240.52,240.51,0.1]
[1758293342609,13.59559401,240.6,240.51,0.1]
[1758293342610,0.72,240.53,240.51,0.1]
[1758293342916,1.4461195,240.54,240.51,0.1]
[1758293343115,0.72,240.53,240.51,0.1]
[1758293343429,26.72,240.53,240.51,0.1]
[1758293343600,27.4461195,240.53,240.51,0.1]
[1758293343797,0.72,240.52,240.51,0.1]
[1758293344206,158.0,240.56,240.51,0.1]
[1758293344420,132.0,240.56,240.51,0.8]
[1758293344627,132.0,240.56,240.52,0.7]
[1758293344919,0.72,240.63,240.53,0.7]
[1758293345224,0.72,240.62,240.53,2.1461195]
[1758293345597,2.1661195,240.62,240.53,2.1461195]
[1758293345798,2.1661195,240.62,240.53,0.7]
[1758293346120,2.1661195,240.62,240.54,4.15731271]
[1758293346320,2.1661195,240.62,240.53,2.1461195]
[1758293346510,0.72,240.66,240.54,0.7]
[1758293346704,1.4461195,240.63,240.56,1.4461195]
[1758293346916,0.72,240.63,240.54,0.7]
[1758293347118,0.72,240.63,240.51,0.1]
[1758293347119,1.4461195,240.61,240.51,0.1]
[1758293347298,0.72,240.6,240.51,4.25775173]
[1758293347502,0.72,240.6,240.51,0.1]
[1758293347700,1.4461195,240.61,240.51,0.1]
[1758293347701,0.72,240.59,240.52,1.4461195]
[1758293348219,0.72,240.59,240.51,1.5461195]
[1758293348524,0.72,240.58,240.51,1.5461195]
[1758293349304,0.72,240.57,240.51,0.1]
[1758293350519,2.1661195,240.57,240.51,0.1]
[1758293350717,0.72,240.57,240.51,0.1]
[1758293351025,0.72,240.57,240.51,1.5461195]
[1758293351207,0.72,240.6,240.53,1.4461195]
[1758293351608,0.72,240.59,240.52,1.4461195]
[1758293351809,0.72,240.59,240.51,0.1]
[1758293352004,1.4461195,240.58,240.51,0.1]
[1758293352204,0.72,240.57,240.51,0.1]
[1758293352437,2.1661195,240.57,240.51,0.1]
[1758293352829,0.72,240.57,240.51,0.1]
[1758293353527,2.1661195,240.57,240.51,0.1]
[1758293353912,0.72,240.57,240.51,0.1]
[1758293354444,2.1661195,240.57,240.51,0.1]
[1758293355130,0.72,240.57,240.51,0.1]
[1758293357910,0.72,240.57,240.51,1.5461195]
[1758293358116,0.72,240.59,240.53,1.4461195]
[1758293358639,0.72,240.59,240.52,4.15764788]
[1758293358942,0.72,240.59,240.54,1.4461195]
[1758293359122,26.0,240.62,240.54,1.4461195]
[1758293359434,0.72,240.58,240.54,1.4461195]
[1758293359612,0.72,240.57,240.51,0.1]
[1758293360336,2.1661195,240.57,240.51,0.1]
[1758293361020,0.72,240.57,240.51,0.1]
[1758293361210,2.1661195,240.57,240.51,0.1]
[1758293361912,0.72,240.57,240.51,0.1]
[1758293362128,2.1661195,240.57,240.51,0.1]
[1758293362519,132.0,240.56,240.51,0.1]
[1758293362715,2.1661195,240.55,240.51,0.1]
[1758293363132,0.72,240.55,240.51,0.1]
[1758293363331,1.4461195,240.54,240.51,0.1]
[1758293363635,26.72,240.53,240.51,0.1]
[1758293364312,28.1661195,240.53,240.51,0.1]
[1758293364506,0.72,240.53,240.51,0.1]
[1758293364710,38.32,240.53,240.51,0.1]
[1758293364910,2.1661195,240.53,240.51,0.1]
[1758293365246,13.59559401,240.52,240.41,0.1]
[1758293365540,26.0,240.49,240.41,0.1]
[1758293365721,26.0,240.47,240.41,0.1]
[1758293365925,0.71,240.47,240.42,1.4461195]
[1758293366130,10.93148046,240.5,240.38,4.16004534]
[1758293366318,26.71,240.5,240.44,1.4461195]
[1758293366827,26.71,240.5,240.38,14.56024502]
[1758293367025,4.16014901,240.54,240.38,14.56024502]
[1758293367026,26.0,240.52,240.39,0.28432314]
[1758293367333,27.03984005,240.51,240.39,0.28432314]
[1758293367522,26.0,240.51,240.44,1.4461195]
[1758293367707,0.71,240.51,240.44,1.4461195]
[1758293368338,0.71,240.51,240.43,4.15906799]
[1758293368514,0.71,240.5,240.42,0.71]
[1758293368717,0.71,240.5,240.44,1.4461195]
[1758293368928,0.71,240.5,240.42,0.71]
[1758293369247,1.03980045,240.51,240.48,1.4461195]
[1758293369415,0.71,240.54,240.48,1.4461195]
[1758293369615,0.1,240.59,240.5,1.4461195]
[1758293369616,1.03965452,240.56,240.5,1.4461195]
[1758293369815,0.1,240.59,240.5,5.60408158]
[1758293370028,0.71,240.58,240.5,5.60408158]
[1758293370321,1.4461195,240.55,240.45,0.71]
[1758293370528,0.71,240.54,240.47,1.4461195]
[1758293370755,1.4461195,240.55,240.45,6.31491445]
[1758293371053,0.71,240.53,240.45,4.86879495]
[1758293371228,0.71,240.53,240.45,6.31491445]
[1758293371833,1.4461195,240.55,240.46,4.15869583]
[1758293372035,0.71,240.52,240.46,1.4461195]
[1758293372248,0.71,240.52,240.44,0.71]
[1758293372552,0.71,240.52,240.42,10.39810286]
[1758293372553,133.4461195,240.51,240.42,1.4461195]
[1758293372845,132.0,240.51,240.41,0.71]
[1758293373017,132.0,240.51,240.43,1.4461195]
[1758293373018,0.71,240.5,240.43,1.4461195]
[1758293373637,132.0,240.51,240.47,1.4461195]
[1758293374034,132.0,240.51,240.47,0.71]
[1758293374244,2.1561195,240.5,240.41,1.4461195]
[1758293374455,0.71,240.49,240.36,0.71]
[1758293374619,1.4461195,240.47,240.39,1.4461195]
[1758293374960,0.71,240.47,240.41,1.4461195]
[1758293375146,0.71,240.5,240.41,1.4461195]
[1758293375438,2.1561195,240.49,240.35,14.56209693]
[1758293375642,0.71,240.48,240.38,4.16007987]
[1758293375818,0.71,240.48,240.41,1.4461195]
[1758293376743,0.71,240.5,240.42,1.4461195]
[1758293376918,2.1561195,240.49,240.41,1.4461195]
[1758293377124,0.71,240.49,240.41,1.4461195]
[1758293377450,0.71,240.49,240.4,0.71]
[1758293377451,0.71,240.48,240.33,2.88112668]
[1758293377744,0.71,240.47,240.36,1.4461195]
[1758293378045,1.03987365,240.48,240.33,6.3320463]
[1758293378046,26.0,240.45,240.33,6.3320463]
[1758293378246,26.71,240.45,240.35,0.71]
[1758293378449,2.1561195,240.45,240.36,1.4461195]
[1758293378947,26.0,240.47,240.34,0.14216157]
[1758293378948,26.0,240.47,240.4,1.4461195]
[1758293379147,0.71,240.48,240.4,1.4461195]
[1758293379321,1.4461195,240.45,240.38,1.4461195]
[1758293379523,0.71,240.44,240.34,5.15499881]
[1758293379724,0.71,240.44,240.37,1.4461195]
[1758293379932,26.0,240.41,240.31,0.1]
[1758293380140,1.4461195,240.33,240.31,0.1]
[1758293380335,27.4461195,240.33,240.31,0.1]
[1758293380649,4.48739075,240.32,240.21,0.1]
[1758293380949,26.0,240.3,240.21,0.1]
[1758293381151,26.71,240.3,240.21,0.81]
[1758293381453,1.04072318,240.29,240.23,0.71]
[1758293381647,2.73272862,240.32,240.25,1.4461195]
[1758293381946,1.04063605,240.31,240.25,1.4461195]
[1758293382251,0.71,240.31,240.24,1.4461195]
[1758293382467,1.4461195,240.33,240.26,101.4461195]
[1758293382767,1.4461195,240.37,240.29,1.4461195]
[1758293383049,1.4461195,240.38,240.3,1.4461195]
[1758293383257,0.71,240.39,240.32,1.4461195]
[1758293383420,1.4461195,240.42,240.35,1.4461195]
[1758293383622,1.4461195,240.42,240.35,5.60658256]
[1758293383823,0.71,240.44,240.35,4.16046306]
[1758293384027,1.4461195,240.4,240.33,0.71]
[1758293384248,1.4461195,240.38,240.32,0.14216157]
[1758293384427,2.1561195,240.39,240.3,1.73044264]
[1758293384633,0.71,240.39,240.3,1.73044264]
[1758293384838,2.1561195,240.39,240.3,0.28432314]
[1758293385023,1.0403739,240.38,240.3,1.73044264]
[1758293385226,27.0403739,240.38,240.3,1.73044264]
[1758293385428,2.1561195,240.37,240.29,0.71]
[1758293385948,1.4461195,240.36,240.29,0.71]
[1758293386130,3.43820354,240.42,240.32,1.4461195]
[1758293386341,1.4461195,240.4,240.32,0.71]
[1758293386545,1.4461195,240.41,240.33,1.4461195]
[1758293386744,1.04026154,240.4,240.33,1.73044264]
[1758293386972,1.4461195,240.44,240.35,1.4461195]
[1758293387155,1.04010088,240.43,240.34,2.1561195]
[1758293387359,0.71,240.44,240.35,0.28432314]
[1758293387553,1.4461195,240.43,240.36,1.4461195]
[1758293387754,0.71,240.44,240.36,5.60637787]
[1758293387937,1.4461195,240.43,240.35,1.73044264]
[1758293388259,1.4461195,240.42,240.35,1.73044264]
[1758293388847,0.71,240.44,240.35,1.73044264]
[1758293388848,0.71,240.44,240.35,0.28432314]
[1758293389171,1.4461195,240.4,240.32,0.28432314]
[1758293389366,1.4461195,240.4,240.32,1.73044264]
[1758293389557,1.4461195,240.4,240.32,0.28432314]
[1758293389748,0.71,240.44,240.33,2.1561195]
[1758293389948,1.4461195,240.42,240.33,2.1561195]
[1758293390179,0.71,240.42,240.33,2.1561195]
[1758293390374,1.4461195,240.41,240.33,2.1561195]
[1758293390861,1.4461195,240.41,240.33,6.31691969]
[1758293391944,1.4461195,240.41,240.34,1.4461195]
[1758293392467,1.4461195,240.41,240.34,5.60683748]
[1758293392659,1.4461195,240.41,240.34,5.60687418]
[1758293392851,1.4461195,240.41,240.33,0.71]
[1758293393054,0.71,240.4,240.31,0.28432314]
[1758293393257,0.71,240.4,240.33,1.4461195]
[1758293393444,26.0,240.46,240.36,1.4461195]
[1758293393771,29.76834399,240.45,240.37,0.71]
[1758293393947,0.71,240.47,240.37,0.71]
[1758293393948,0.71,240.47,240.39,1.4461195]
[1758293394151,0.71,240.47,240.39,2.1561195]
[1758293394367,3.19621194,240.47,240.39,2.1561195]
[1758293394578,3.19621194,240.47,240.32,13.59559401]
[1758293394579,117.763927,240.4,240.37,0.71]
[1758293394749,117.763927,240.4,240.37,2.1561195]
[1758293394945,117.763927,240.4,240.31,0.71]
[1758293395250,117.763927,240.4,240.34,1.4461195]
[1758293395440,117.763927,240.4,240.35,0.98432314]
[1758293395640,117.763927,240.4,240.35,0.28432314]
[1758293396076,117.763927,240.4,240.36,0.7]
[1758293396448,117.763927,240.4,240.36,2.26177189]
[1758293396658,118.463927,240.4,240.35,2.26177189]
[1758293397069,117.763927,240.4,240.37,2.26177189]
[1758293397376,117.763927,240.4,240.39,2.54609503]
[1758293397567,117.763927,240.4,240.39,3.21609503]
[1758293398385,117.763927,240.4,240.39,5.11422995]
[1758293398547,117.763927,240.4,240.39,7.37600184]
[1758293398948,117.763927,240.4,240.39,20.97159585]
[1758293399154,117.763927,240.4,240.39,55.28982396]
[1758293399359,117.763927,240.4,240.39,57.55159585]
[1758293400247,117.763927,240.4,240.39,18.70982396]
[1758293400449,117.763927,240.4,240.39,57.51159585]
[1758293401376,0.1,240.49,240.43,13.59559401]
[1758293401561,0.1,240.49,240.48,16.14168904]
[1758293401974,0.1,240.49,240.48,52.62168904]
[1758293402357,0.1,240.49,240.48,56.780039]
[1758293402671,0.1,240.49,240.48,20.300039]
[1758293402977,0.1,240.49,240.48,56.760039]
[1758293403273,0.1,240.49,240.48,20.300039]
[1758293403574,0.1,240.49,240.48,56.740039]
[1758293404148,0.1,240.49,240.48,20.300039]
[1758293404379,0.1,240.49,240.48,56.720039]
[1758293405371,0.67,240.6,240.49,13.87991715]
[1758293405562,2.72952596,240.68,240.48,69.3776858]
[1758293405563,0.67,240.63,240.58,15.8573659]
[1758293405758,0.67,240.66,240.58,52.50168904]
[1758293406080,0.1,240.69,240.58,52.50168904]
[1758293406374,0.67,240.68,240.58,52.48168904]
[1758293406579,0.1,240.69,240.59,13.87991715]
[1758293406884,0.1,240.69,240.68,2.26177189]
[1758293407059,0.51547621,240.69,240.62,0.28432314]
[1758293407378,0.51547621,240.69,240.64,2.54609503]
[1758293407587,0.1,240.69,240.64,18.16671009]
[1758293407881,0.1,240.69,240.65,36.32]
[1758293408070,0.1,240.69,240.65,36.44]
[1758293408277,0.1,240.69,240.65,2.26177189]
[1758293408278,0.67,240.68,240.65,2.26177189]
[1758293408468,0.67,240.67,240.66,2.26177189]
[1758293408654,0.1,240.69,240.66,2.26177189]
[1758293408857,0.67,240.68,240.65,0.28432314]
[1758293409085,0.67,240.67,240.65,0.28432314]
[1758293409386,0.67,240.66,240.65,36.68432314]
[1758293409560,0.67,240.66,240.65,0.28432314]
[1758293409890,0.67,240.66,240.6,36.38]
[1758293410077,0.67,240.66,240.54,13.59559401]
[1758293410078,0.67,240.65,240.54,13.59559401]
[1758293410279,0.67,240.64,240.53,4.15748555]
[1758293410493,0.67,240.63,240.58,2.26177189]
[1758293410657,0.41553251,240.66,240.58,2.26177189]
[1758293410981,0.41553251,240.66,240.54,36.66432314]
[1758293410982,0.67,240.65,240.6,2.26177189]
[1758293411167,0.67,240.64,240.58,2.26177189]
[1758293411481,1.08558811,240.63,240.58,2.26177189]
[1758293411683,0.67,240.62,240.6,2.26177189]
[1758293411883,0.67,240.61,240.56,4.1569392]
[1758293412089,1.03921283,240.65,240.56,4.1569392]
[1758293412090,0.67,240.6,240.59,2.26177189]
[1758293412267,1.03921283,240.65,240.59,2.26177189]
[1758293412484,0.67,240.65,240.61,2.26177189]
[1758293412674,0.67,240.64,240.61,2.26177189]
[1758293413092,1.70917018,240.67,240.57,0.28432314]
[1758293413274,0.67,240.66,240.65,2.26177189]
[1758293413981,0.67,240.66,240.61,2.26177189]
[1758293414294,0.67,240.65,240.61,2.26177189]
[1758293414591,0.67,240.64,240.61,2.26177189]
[1758293414885,0.67,240.63,240.59,0.28432314]
[1758293415090,0.67,240.63,240.6,2.26177189]
[1758293415465,0.41554445,240.65,240.6,2.26177189]
[1758293415691,0.41554445,240.65,240.58,2.26177189]
[1758293415692,0.67,240.62,240.58,2.26177189]
[1758293415864,0.67,240.61,240.58,2.26177189]
[1758293416371,0.67,240.6,240.54,4.15727906]
[1758293416574,0.67,240.6,240.54,36.2]
[1758293416774,1.03914904,240.64,240.48,4.15825064]
[1758293416775,0.67,240.59,240.48,4.15825064]
[1758293416973,0.67,240.58,240.53,2.26177189]
[1758293417292,0.67,240.57,240.43,10.39799937]
[1758293417482,0.41554445,240.65,240.51,2.26177189]
[1758293417483,0.67,240.56,240.51,2.26177189]
[1758293417787,1.08571398,240.55,240.48,36.2]
[1758293417995,1.08571398,240.55,240.49,2.26177189]
[1758293417996,0.67,240.54,240.49,2.26177189]
[1758293418382,0.67,240.53,240.49,2.26177189]
[1758293418583,0.67,240.52,240.49,2.26177189]
[1758293418784,0.67,240.51,240.43,4.15904642]
[1758293419089,0.67,240.5,240.45,2.26177189]
[1758293419267,0.67,240.49,240.44,36.16]
[1758293419468,0.67,240.48,240.45,2.26177189]
[1758293419668,0.41579507,240.51,240.45,2.26177189]
[1758293419891,0.67,240.5,240.45,2.26177189]
[1758293420078,0.67,240.49,240.43,36.14]
[1758293420277,1.0392494,240.56,240.44,0.28432314]
[1758293420482,26.67,240.54,240.48,2.26177189]
[1758293420794,1.70975011,240.53,240.48,2.26177189]
[1758293420984,0.67,240.52,240.46,2.26177189]
[1758293421297,0.67,240.51,240.44,0.28432314]
[1758293421478,0.67,240.51,240.45,4.15886878]
[1758293421791,0.67,240.5,240.45,2.26177189]
[1758293421997,0.67,240.49,240.42,0.28432314]
[1758293422191,0.67,240.49,240.42,2.40393346]
[1758293422391,0.67,240.49,240.44,2.26177189]
[1758293422578,0.67,240.49,240.42,0.28432314]
[1758293422890,0.67,240.49,240.44,2.26177189]
[1758293423096,0.67,240.48,240.44,2.26177189]
[1758293423292,0.67,240.47,240.41,36.18]
[1758293423495,0.67,240.46,240.41,40.33955234]
[1758293423672,0.67,240.45,240.41,36.18]
[1758293423873,0.67,240.44,240.41,36.18]
[1758293424073,0.67,240.47,240.41,40.33946827]
[1758293424305,0.67,240.47,240.41,36.18]
[1758293424598,0.67,240.46,240.42,2.26177189]
[1758293424798,0.67,240.45,240.42,2.26177189]
[1758293424968,1.03990477,240.49,240.42,2.26177189]
[1758293425170,1.70990477,240.49,240.41,40.33953196]
[1758293425386,1.03990477,240.48,240.44,2.26177189]
[1758293425592,0.66,240.48,240.44,2.26177189]
[1758293425796,0.66,240.47,240.44,2.26177189]
[1758293425994,0.66,240.46,240.42,2.26177189]
[1758293426290,0.66,240.45,240.42,2.26177189]
[1758293426505,1.03988832,240.49,240.41,42.60117177]
[1758293426506,1.69988832,240.49,240.41,42.60117177]
[1758293426672,1.03988832,240.49,240.47,2.26177189]
[1758293426990,0.66,240.52,240.47,2.26177189]
[1758293427196,27.03921652,240.57,240.47,2.26177189]
[1758293427197,0.66,240.51,240.47,2.26177189]
[1758293427512,1.03974692,240.53,240.5,2.26177189]
[1758293427697,0.66,240.56,240.52,2.26177189]
[1758293427876,0.66,240.59,240.54,2.26177189]
[1758293428078,0.66,240.58,240.54,2.26177189]
[1758293428277,0.66,240.57,240.48,14.83854801]
[1758293428585,0.66,240.57,240.53,2.26177189]
[1758293428791,4.79812445,240.68,240.48,14.83854801]
[1758293428792,0.66,240.56,240.48,14.83854801]
[1758293428992,0.66,240.56,240.53,2.26177189]
[1758293429377,0.66,240.56,240.5,0.28432314]
[1758293429593,1.07568417,240.57,240.52,2.26177189]
[1758293429777,1.07568417,240.57,240.5,4.44227734]
[1758293429778,0.66,240.57,240.53,5.56406421]
[1758293430210,0.66,240.56,240.5,4.44227734]
[1758293430496,0.66,240.56,240.52,5.56406421]
[1758293430699,0.66,240.55,240.52,5.56406421]
[1758293430998,6.22406421,240.54,240.38,10.39993687]
[1758293431207,5.56406421,240.49,240.39,4.15977611]
[1758293431404,1.03992169,240.48,240.35,35.9]
[1758293431588,1.45554353,240.46,240.35,35.9]
[1758293431786,7.26416077,240.45,240.35,35.9]
[1758293431998,5.56406421,240.43,240.32,2.17130807]
[1758293432175,0.66,240.45,240.35,5.56406421]